[Event "Live Chess"]
[Site "Chess.com"]
[Date "2023.05.21"]
[Round "-"]
[White "DoYouLikeCurry"]
[Black "Bunny55"]
[Result "1-0"]
[WhiteElo "1377"]
[BlackElo "949"]
[TimeControl "300"]
[EndTime "2:30:44 PDT"]
[Termination "DoYouLikeCurry won by resignation"]

1. e4 {[%clk 0:04:57.2]} 1... c5 {[%clk 0:04:58.3]} 2. Nc3 {[%clk 0:04:55.4]}
2... Nc6 {[%clk 0:04:56.2]} 3. f4 {[%clk 0:04:51.7]} 3... d6 {[%clk 0:04:54.4]}
4. Nf3 {[%clk 0:04:44.9]} 4... g6 {[%clk 0:04:54.3]} 5. Bc4 {[%clk 0:04:38.3]}
5... Bg7 {[%clk 0:04:52.8]} 6. d3 {[%clk 0:04:36.5]} 6... e6 {[%clk 0:04:51.2]}
7. O-O {[%clk 0:04:32.8]} 7... a6 {[%clk 0:04:50.1]} 8. a3 {[%clk 0:04:30.1]}
8... b5 {[%clk 0:04:47.8]} 9. Ba2 {[%clk 0:04:28]} 9... Nge7 {[%clk 0:04:46.7]}
10. Qe1 {[%clk 0:04:24.8]} 10... O-O {[%clk 0:04:44.6]} 11. Qh4 {[%clk
0:04:19.6]} 11... Nd4 {[%clk 0:04:39.3]} 12. f5 {[%clk 0:03:44.2]} 12... Nxf3+
{[%clk 0:04:34.3]} 13. Rxf3 {[%clk 0:03:41]} 13... exf5 {[%clk 0:04:31.5]} 14.
Bg5 {[%clk 0:03:35.6]} 14... Re8 {[%clk 0:04:17.1]} 15. exf5 {[%clk 0:03:28.5]}
15... Qb6 {[%clk 0:04:01]} 16. f6 {[%clk 0:03:24.4]} 16... c4+ {[%clk
0:03:59.2]} 17. Kh1 {[%clk 0:03:20.3]} 17... Nf5 {[%clk 0:03:52.8]} 18. Rxf5
{[%clk 0:03:19]} 18... Bxf5 {[%clk 0:03:50.6]} 19. fxg7 {[%clk 0:03:14.6]} 19...
Re6 {[%clk 0:03:33.2]} 20. Nd5 {[%clk 0:03:03.2]} 20... Qd4 {[%clk 0:03:17.4]}
21. Qxd4 {[%clk 0:02:55.2]} 21... Rae8 {[%clk 0:03:11.6]} 22. h3 {[%clk
0:02:45.9]} 22... Re1+ {[%clk 0:03:09.5]} 23. Rxe1 {[%clk 0:02:44.1]} 1-0

[Event "Live Chess"]
[Site "Chess.com"]
[Date "2023.05.21"]
[Round "-"]
[White "Brooms1989"]
[Black "Tushinskiy"]
[Result "0-1"]
[WhiteElo "1108"]
[BlackElo "2155"]
[TimeControl "300"]
[EndTime "2:31:04 PDT"]
[Termination "Tushinskiy won by checkmate"]

1. e4 {[%clk 0:04:56.9]} 1... e5 {[%clk 0:04:56]} 2. Nc3 {[%clk 0:04:54.6]} 2...
d6 {[%clk 0:04:55.9]} 3. f4 {[%clk 0:04:53]} 3... Nf6 {[%clk 0:04:54]} 4. Nf3
{[%clk 0:04:51.8]} 4... Bg4 {[%clk 0:04:52.9]} 5. fxe5 {[%clk 0:04:49.3]} 5...
dxe5 {[%clk 0:04:51.5]} 6. Be2 {[%clk 0:04:44.6]} 6... Nbd7 {[%clk 0:04:49.5]}
7. O-O {[%clk 0:04:43.2]} 7... c6 {[%clk 0:04:47.6]} 8. Ne1 {[%clk 0:04:39.7]}
8... Bc5+ {[%clk 0:04:43.7]} 9. Kh1 {[%clk 0:04:35.8]} 9... h5 {[%clk
0:04:42.8]} 10. d3 {[%clk 0:04:24]} 10... Qe7 {[%clk 0:04:40]} 11. Bg5 {[%clk
0:04:09.2]} 11... O-O-O {[%clk 0:04:38.4]} 12. a3 {[%clk 0:03:57.6]} 12... Qe6
{[%clk 0:04:36.1]} 13. b4 {[%clk 0:03:50.9]} 13... Bd4 {[%clk 0:04:34.7]} 14.
Bxf6 {[%clk 0:03:40.2]} 14... Nxf6 {[%clk 0:04:30.5]} 15. Bxg4 {[%clk
0:03:18.9]} 15... hxg4 {[%clk 0:04:27.9]} 16. Qd2 {[%clk 0:03:13.4]} 16... g3
{[%clk 0:04:26.6]} 17. h3 {[%clk 0:03:11.9]} 17... Rxh3+ {[%clk 0:04:23]} 18.
gxh3 {[%clk 0:03:05.3]} 18... Qxh3+ {[%clk 0:04:22.9]} 19. Qh2 {[%clk
0:02:59.5]} 19... Qxh2# {[%clk 0:04:22.6]} 0-1

[Event "Live Chess"]
[Site "Chess.com"]
[Date "2023.05.21"]
[Round "-"]
[White "YrrriKharkiv"]
[Black "Chris_pea"]
[Result "1-0"]
[WhiteElo "2072"]
[BlackElo "610"]
[TimeControl "300"]
[EndTime "2:31:04 PDT"]
[Termination "YrrriKharkiv won by resignation"]

1. d4 {[%clk 0:04:55.3]} 1... d5 {[%clk 0:04:55.7]} 2. c4 {[%clk 0:04:54.7]}
2... Bf5 {[%clk 0:04:48.7]} 3. cxd5 {[%clk 0:04:52.4]} 3... Qxd5 {[%clk
0:04:46.4]} 4. Nc3 {[%clk 0:04:51.5]} 4... Qd8 {[%clk 0:04:41]} 5. e4 {[%clk
0:04:50.2]} 5... Bg6 {[%clk 0:04:37.3]} 6. Nf3 {[%clk 0:04:48.1]} 6... e6 {[%clk
0:04:34.6]} 7. Qb3 {[%clk 0:04:45.6]} 7... Nc6 {[%clk 0:04:18.2]} 8. Qxb7 {[%clk
0:04:35.4]} 8... Nb4 {[%clk 0:03:58.8]} 9. Bb5+ {[%clk 0:04:30.2]} 9... Nc6
{[%clk 0:03:22.6]} 10. Qxc6+ {[%clk 0:04:23.9]} 10... Qd7 {[%clk 0:03:19.8]} 11.
Qxa8+ {[%clk 0:04:22]} 11... Ke7 {[%clk 0:03:17]} 12. Bxd7 {[%clk 0:04:21]} 1-0

[Event "Live Chess"]
[Site "Chess.com"]
[Date "2023.05.21"]
[Round "-"]
[White "hunany_3"]
[Black "bedsdrout"]
[Result "1-0"]
[WhiteElo "1730"]
[BlackElo "339"]
[TimeControl "300"]
[EndTime "2:31:21 PDT"]
[Termination "hunany_3 won on time"]

1. e4 {[%clk 0:04:58.8]} 1... e5 {[%clk 0:04:52.9]} 2. Nf3 {[%clk 0:04:57.9]}
2... Nf6 {[%clk 0:04:43.4]} 3. Nxe5 {[%clk 0:04:56.3]} 3... Qe7 {[%clk
0:04:38.3]} 4. d4 {[%clk 0:04:26.4]} 4... Nxe4 {[%clk 0:04:32]} 5. Qe2 {[%clk
0:04:12.9]} 5... Qh4 {[%clk 0:04:22.9]} 6. g3 {[%clk 0:03:54.1]} 6... Qf6 {[%clk
0:04:13.5]} 7. Qxe4 {[%clk 0:03:52.4]} 7... Bb4+ {[%clk 0:04:07.3]} 8. c3 {[%clk
0:03:51]} 8... Ba5 {[%clk 0:04:05.4]} 9. Nc6+ {[%clk 0:03:44.6]} 9... Kf8 {[%clk
0:03:35]} 10. Nxa5 {[%clk 0:03:42.6]} 10... Na6 {[%clk 0:03:26.2]} 11. Bg2
{[%clk 0:03:32.1]} 11... d6 {[%clk 0:03:16.4]} 12. O-O {[%clk 0:03:29.4]} 12...
Bf5 {[%clk 0:03:08.2]} 13. Qxb7 {[%clk 0:03:24.6]} 13... Ke7 {[%clk 0:03:02.4]}
14. Re1+ {[%clk 0:03:17.6]} 14... Be6 {[%clk 0:02:41.7]} 15. Nc6+ {[%clk
0:03:08.4]} 15... Kd7 {[%clk 0:01:58.7]} 16. Qxa6 {[%clk 0:03:06.2]} 16... g6
{[%clk 0:01:24.3]} 17. d5 {[%clk 0:03:02.5]} 17... Bf5 {[%clk 0:00:56.3]} 18.
Re7+ {[%clk 0:03:01.2]} 18... Qxe7 {[%clk 0:00:12.3]} 19. Nxe7 {[%clk
0:03:01.1]} 19... Kxe7 {[%clk 0:00:10.7]} 20. Bg5+ {[%clk 0:03:00.6]} 20... Kf8
{[%clk 0:00:07.5]} 21. Qc6 {[%clk 0:02:56.8]} 1-0

[Event "Live Chess"]
[Site "Chess.com"]
[Date "2023.05.21"]
[Round "-"]
[White "Berdgross"]
[Black "EdenHazard8"]
[Result "0-1"]
[WhiteElo "656"]
[BlackElo "1977"]
[TimeControl "300"]
[EndTime "2:31:21 PDT"]
[Termination "EdenHazard8 won by checkmate"]

1. e4 {[%clk 0:04:56.6]} 1... e5 {[%clk 0:04:59.9]} 2. d3 {[%clk 0:04:55.8]}
2... Nc6 {[%clk 0:04:59.7]} 3. Nf3 {[%clk 0:04:54.1]} 3... Bc5 {[%clk
0:04:58.9]} 4. Nc3 {[%clk 0:04:51.8]} 4... Nf6 {[%clk 0:04:57.6]} 5. Nd5 {[%clk
0:04:48.7]} 5... Ng4 {[%clk 0:04:54.7]} 6. Be3 {[%clk 0:04:43.3]} 6... Nxe3
{[%clk 0:04:53]} 7. Nxe3 {[%clk 0:04:39.8]} 7... Bxe3 {[%clk 0:04:51.1]} 8. fxe3
{[%clk 0:04:39]} 8... O-O {[%clk 0:04:50.8]} 9. Be2 {[%clk 0:04:34]} 9... d6
{[%clk 0:04:46.4]} 10. O-O {[%clk 0:04:33.1]} 10... f5 {[%clk 0:04:44.7]} 11.
exf5 {[%clk 0:04:31.8]} 11... Bxf5 {[%clk 0:04:44.6]} 12. e4 {[%clk 0:04:30.3]}
12... Be6 {[%clk 0:04:41.5]} 13. c4 {[%clk 0:04:25.7]} 13... Qe8 {[%clk
0:04:39.5]} 14. Qb3 {[%clk 0:04:21.2]} 14... Qg6 {[%clk 0:04:37.6]} 15. Qxb7
{[%clk 0:04:15.4]} 15... Nd4 {[%clk 0:04:30.2]} 16. Nxd4 {[%clk 0:04:13.2]}
16... exd4 {[%clk 0:04:30.1]} 17. Qb3 {[%clk 0:04:04.3]} 17... Bh3 {[%clk
0:04:27.7]} 18. Bf3 {[%clk 0:04:01.7]} 18... Rxf3 {[%clk 0:04:25.8]} 19. Qd1
{[%clk 0:03:57.3]} 19... Qxg2# {[%clk 0:04:23.9]} 0-1

[Event "Live Chess"]
[Site "Chess.com"]
[Date "2023.05.21"]
[Round "-"]
[White "Duke_of_Bebington"]
[Black "Pandreq"]
[Result "1-0"]
[WhiteElo "1588"]
[BlackElo "1235"]
[TimeControl "300"]
[EndTime "2:31:38 PDT"]
[Termination "Duke_of_Bebington won on time"]

1. e4 {[%clk 0:04:58.1]} 1... Nf6 {[%clk 0:04:58.9]} 2. e5 {[%clk 0:04:53.5]}
2... Nd5 {[%clk 0:04:57.1]} 3. c4 {[%clk 0:04:53.1]} 3... Nb6 {[%clk 0:04:55.9]}
4. d4 {[%clk 0:04:52.7]} 4... d6 {[%clk 0:04:54.7]} 5. f4 {[%clk 0:04:50.8]}
5... Bf5 {[%clk 0:04:52.4]} 6. Bd3 {[%clk 0:04:44]} 6... Bxd3 {[%clk 0:04:51.1]}
7. Qxd3 {[%clk 0:04:42.6]} 7... Nc6 {[%clk 0:04:49.7]} 8. a3 {[%clk 0:04:40.1]}
8... e6 {[%clk 0:04:34.9]} 9. Nf3 {[%clk 0:04:36.4]} 9... d5 {[%clk 0:04:33.7]}
10. c5 {[%clk 0:04:27.5]} 10... Nc4 {[%clk 0:04:24.1]} 11. Nbd2 {[%clk
0:04:16.6]} 11... Nxd2 {[%clk 0:04:20.1]} 12. Bxd2 {[%clk 0:04:15.5]} 12... b6
{[%clk 0:04:20]} 13. b4 {[%clk 0:04:13.9]} 13... a5 {[%clk 0:04:13.4]} 14. O-O
{[%clk 0:04:10.4]} 14... axb4 {[%clk 0:04:09.6]} 15. axb4 {[%clk 0:04:07.5]}
15... Rxa1 {[%clk 0:04:09.5]} 16. Rxa1 {[%clk 0:04:05.7]} 16... bxc5 {[%clk
0:04:08.2]} 17. bxc5 {[%clk 0:04:02.7]} 17... Be7 {[%clk 0:04:01.9]} 18. Qb5
{[%clk 0:04:00.6]} 18... Qd7 {[%clk 0:03:52.5]} 19. Ra8+ {[%clk 0:03:57.1]}
19... Bd8 {[%clk 0:03:52]} 20. Bc3 {[%clk 0:03:24.4]} 20... O-O {[%clk 0:03:49]}
21. Nd2 {[%clk 0:03:22.3]} 21... Nxe5 {[%clk 0:03:15.9]} 22. Qxd7 {[%clk
0:03:17.9]} 22... Nxd7 {[%clk 0:03:14.7]} 23. Nb3 {[%clk 0:03:13.6]} 23... Nf6
{[%clk 0:02:58.5]} 24. Na5 {[%clk 0:03:09]} 24... c6 {[%clk 0:02:52.6]} 25. Nxc6
{[%clk 0:02:58.1]} 25... Ne4 {[%clk 0:02:38.8]} 26. Be1 {[%clk 0:02:50.9]} 26...
Bf6 {[%clk 0:02:30.5]} 27. Rxf8+ {[%clk 0:02:47.1]} 27... Kxf8 {[%clk
0:02:28.9]} 28. Ne5 {[%clk 0:02:45.7]} 28... Bd8 {[%clk 0:02:08.4]} 29. Kf1
{[%clk 0:02:26.2]} 29... f6 {[%clk 0:01:58.2]} 30. Nd7+ {[%clk 0:02:15.8]} 30...
Ke7 {[%clk 0:01:51.2]} 31. c6 {[%clk 0:02:14.2]} 31... Bc7 {[%clk 0:01:31.1]}
32. g3 {[%clk 0:02:06.7]} 32... f5 {[%clk 0:01:15.8]} 33. Ke2 {[%clk 0:01:58.8]}
33... Nf6 {[%clk 0:01:03.5]} 34. Bb4+ {[%clk 0:01:52.7]} 34... Kf7 {[%clk
0:00:59.9]} 35. Kd3 {[%clk 0:01:45.7]} 35... g6 {[%clk 0:00:41.5]} 36. Ne5+
{[%clk 0:01:37.4]} 36... Bxe5 {[%clk 0:00:32.5]} 37. fxe5 {[%clk 0:01:36.1]}
37... Ne8 {[%clk 0:00:28.1]} 38. Bd6 {[%clk 0:01:32.3]} 38... Nxd6 {[%clk
0:00:12.4]} 39. exd6 {[%clk 0:01:30.1]} 39... Ke8 {[%clk 0:00:11.6]} 40. c7
{[%clk 0:01:26.6]} 40... Kd7 {[%clk 0:00:10.1]} 41. Ke3 {[%clk 0:01:24.6]} 41...
g5 {[%clk 0:00:06.7]} 42. Kd3 {[%clk 0:01:19.1]} 42... h5 {[%clk 0:00:04.7]} 43.
Ke3 {[%clk 0:01:17.3]} 1-0

[Event "Live Chess"]
[Site "Chess.com"]
[Date "2023.05.21"]
[Round "-"]
[White "RichardABates"]
[Black "WelshTiger"]
[Result "0-1"]
[WhiteElo "2125"]
[BlackElo "2338"]
[TimeControl "300"]
[EndTime "2:31:42 PDT"]
[Termination "WelshTiger won by resignation"]

1. d4 {[%clk 0:04:56.2]} 1... d5 {[%clk 0:04:57.9]} 2. c4 {[%clk 0:04:55]} 2...
e6 {[%clk 0:04:56.2]} 3. Nf3 {[%clk 0:04:52.9]} 3... Nf6 {[%clk 0:04:55]} 4. g3
{[%clk 0:04:51.6]} 4... Be7 {[%clk 0:04:48.4]} 5. Bg2 {[%clk 0:04:50.3]} 5...
O-O {[%clk 0:04:46.4]} 6. O-O {[%clk 0:04:49]} 6... c5 {[%clk 0:04:39.1]} 7.
cxd5 {[%clk 0:04:46.5]} 7... exd5 {[%clk 0:04:38.1]} 8. b3 {[%clk 0:04:38.7]}
8... Nc6 {[%clk 0:04:35.6]} 9. Ba3 {[%clk 0:04:36.2]} 9... cxd4 {[%clk
0:04:16.4]} 10. Nxd4 {[%clk 0:04:33.3]} 10... Bxa3 {[%clk 0:04:09.3]} 11. Nxa3
{[%clk 0:04:30.3]} 11... Qa5 {[%clk 0:04:08.4]} 12. Nac2 {[%clk 0:04:23.5]}
12... Re8 {[%clk 0:04:01.3]} 13. Ne3 {[%clk 0:04:16.6]} 13... Be6 {[%clk
0:03:53.4]} 14. a4 {[%clk 0:03:22]} 14... Rac8 {[%clk 0:03:36.9]} 15. Nb5 {[%clk
0:03:19.9]} 15... Red8 {[%clk 0:03:31.7]} 16. Qe1 {[%clk 0:03:05.9]} 16... Qb6
{[%clk 0:03:27.6]} 17. Qd2 {[%clk 0:03:01]} 17... a6 {[%clk 0:03:19.8]} 18. Na3
{[%clk 0:02:50]} 18... Qxb3 {[%clk 0:03:09.8]} 19. Rfb1 {[%clk 0:02:48.3]} 19...
Qxa4 {[%clk 0:03:05.4]} 20. Nac4 {[%clk 0:02:45.5]} 20... Qxa1 {[%clk
0:02:40.6]} 21. Rxa1 {[%clk 0:02:43.5]} 21... dxc4 {[%clk 0:02:40.2]} 22. Qc3
{[%clk 0:02:42]} 22... Nd4 {[%clk 0:02:36.8]} 23. Ra2 {[%clk 0:02:21.8]} 23...
b5 {[%clk 0:02:32.3]} 24. Bb7 {[%clk 0:02:16.9]} 24... Rc7 {[%clk 0:02:26.9]}
25. Bxa6 {[%clk 0:02:15.3]} 25... Ne4 {[%clk 0:02:25.8]} 26. Qa5 {[%clk
0:02:11.8]} 26... Rcd7 {[%clk 0:02:00.4]} 27. Bxb5 {[%clk 0:02:05.5]} 27... Nxb5
{[%clk 0:01:59.6]} 28. Qxb5 {[%clk 0:02:04]} 28... Nc3 {[%clk 0:01:57.5]} 29.
Qa5 {[%clk 0:01:42.7]} 29... Nxa2 {[%clk 0:01:56.2]} 30. Qxa2 {[%clk 0:01:41.5]}
30... c3 {[%clk 0:01:55.6]} 31. Qa5 {[%clk 0:01:28.8]} 31... Rc8 {[%clk
0:01:52.2]} 32. f4 {[%clk 0:01:21.1]} 32... g6 {[%clk 0:01:44.4]} 33. Nc2 {[%clk
0:01:09.9]} 33... Rd2 {[%clk 0:01:41.3]} 34. Qa4 {[%clk 0:01:01.7]} 34... Rxe2
{[%clk 0:01:33.3]} 35. Nd4 {[%clk 0:00:56.3]} 35... Re4 {[%clk 0:01:23.1]} 36.
Qa7 {[%clk 0:00:44.4]} 36... Rxd4 {[%clk 0:01:19.9]} 0-1

[Event "Live Chess"]
[Site "Chess.com"]
[Date "2023.05.21"]
[Round "-"]
[White "raminguy"]
[Black "PrinceCharming_1"]
[Result "1-0"]
[WhiteElo "1961"]
[BlackElo "1623"]
[TimeControl "300"]
[EndTime "2:31:42 PDT"]
[Termination "raminguy won by resignation"]

1. d4 {[%clk 0:04:48.2]} 1... f6 {[%clk 0:04:59.1]} 2. Nc3 {[%clk 0:04:47.4]}
2... d6 {[%clk 0:04:55.4]} 3. Bf4 {[%clk 0:04:46.7]} 3... e5 {[%clk 0:04:53.7]}
4. dxe5 {[%clk 0:04:44.6]} 4... fxe5 {[%clk 0:04:53.6]} 5. Bg3 {[%clk
0:04:36.4]} 5... Nf6 {[%clk 0:04:52.8]} 6. e4 {[%clk 0:04:35.3]} 6... Be7 {[%clk
0:04:52.2]} 7. Nf3 {[%clk 0:04:32.1]} 7... O-O {[%clk 0:04:51.7]} 8. Ng5 {[%clk
0:04:29.1]} 8... h6 {[%clk 0:04:49.3]} 9. Bc4+ {[%clk 0:04:20.2]} 9... Kh8
{[%clk 0:04:43.4]} 10. Nf7+ {[%clk 0:04:18.7]} 10... Rxf7 {[%clk 0:04:42.6]} 11.
Bxf7 {[%clk 0:04:18.3]} 11... Qf8 {[%clk 0:04:40.6]} 12. Bb3 {[%clk 0:04:17.1]}
12... Bg4 {[%clk 0:04:38.8]} 13. f3 {[%clk 0:04:15.1]} 13... Bd7 {[%clk
0:04:37]} 14. O-O {[%clk 0:04:13.8]} 14... Nc6 {[%clk 0:04:36]} 15. Nd5 {[%clk
0:04:10.3]} 15... Nxd5 {[%clk 0:04:34.8]} 16. Bxd5 {[%clk 0:04:08.7]} 16... Nd4
{[%clk 0:04:34.7]} 17. a3 {[%clk 0:03:59.6]} 17... c6 {[%clk 0:04:33.3]} 18. Ba2
{[%clk 0:03:58.5]} 18... Qd8 {[%clk 0:04:29.5]} 19. c3 {[%clk 0:03:57.4]} 19...
Nb5 {[%clk 0:04:27.5]} 20. Qd2 {[%clk 0:03:49.6]} 20... Nc7 {[%clk 0:04:23.1]}
21. Rad1 {[%clk 0:03:48]} 21... Be6 {[%clk 0:04:22.5]} 22. Bxe6 {[%clk
0:03:34.4]} 22... Nxe6 {[%clk 0:04:21.1]} 23. Qc2 {[%clk 0:03:32.2]} 23... Qc7
{[%clk 0:04:14.5]} 24. Rd2 {[%clk 0:03:25.9]} 24... Nf4 {[%clk 0:04:09.7]} 25.
Rfd1 {[%clk 0:03:22.5]} 25... Rd8 {[%clk 0:04:06.6]} 26. c4 {[%clk 0:03:16.4]}
26... b6 {[%clk 0:04:04.7]} 27. b4 {[%clk 0:03:13.5]} 27... a6 {[%clk
0:04:02.4]} 28. Bxf4 {[%clk 0:03:08.5]} 28... exf4 {[%clk 0:04:01.3]} 29. Rd3
{[%clk 0:03:03.2]} 29... Bf6 {[%clk 0:03:59.5]} 30. Qd2 {[%clk 0:02:59.4]} 30...
Be5 {[%clk 0:03:58.5]} 31. c5 {[%clk 0:02:57]} 31... bxc5 {[%clk 0:03:57.6]} 32.
bxc5 {[%clk 0:02:55.7]} 32... Qa7 {[%clk 0:03:55.5]} 33. Qf2 {[%clk 0:02:51.3]}
33... Rb8 {[%clk 0:03:13.3]} 34. cxd6 {[%clk 0:02:44.4]} 34... Qxf2+ {[%clk
0:03:11.9]} 35. Kxf2 {[%clk 0:02:43]} 35... Rb2+ {[%clk 0:03:11.8]} 36. R1d2
{[%clk 0:02:42.1]} 36... Rxd2+ {[%clk 0:03:09.8]} 37. Rxd2 {[%clk 0:02:41.1]}
37... c5 {[%clk 0:03:06.9]} 38. d7 {[%clk 0:02:40]} 38... Bf6 {[%clk 0:03:02.9]}
39. d8=Q+ {[%clk 0:02:38.7]} 39... Bxd8 {[%clk 0:03:02.8]} 40. Rxd8+ {[%clk
0:02:37.9]} 40... Kh7 {[%clk 0:03:02.7]} 41. Rc8 {[%clk 0:02:37.7]} 1-0

[Event "Live Chess"]
[Site "Chess.com"]
[Date "2023.05.21"]
[Round "-"]
[White "LiamBellwood"]
[Black "chessfiction"]
[Result "0-1"]
[WhiteElo "1958"]
[BlackElo "2336"]
[TimeControl "300"]
[EndTime "2:31:50 PDT"]
[Termination "chessfiction won by resignation"]

1. d4 {[%clk 0:04:58.2]} 1... d5 {[%clk 0:04:58.6]} 2. Nc3 {[%clk 0:04:57.8]}
2... e5 {[%clk 0:04:57.4]} 3. Bf4 {[%clk 0:04:57.3]} 3... exf4 {[%clk
0:04:56.5]} 4. Qd2 {[%clk 0:04:53.1]} 4... Bd6 {[%clk 0:04:54.4]} 5. Nh3 {[%clk
0:04:51.7]} 5... Bxh3 {[%clk 0:04:52.2]} 6. gxh3 {[%clk 0:04:51]} 6... Nf6
{[%clk 0:04:51.4]} 7. e3 {[%clk 0:04:49.6]} 7... fxe3 {[%clk 0:04:49.9]} 8. fxe3
{[%clk 0:04:49.5]} 8... Nc6 {[%clk 0:04:47.7]} 9. Bb5 {[%clk 0:04:47]} 9... O-O
{[%clk 0:04:46.3]} 10. Bxc6 {[%clk 0:04:46.9]} 10... bxc6 {[%clk 0:04:44.8]} 11.
Rg1 {[%clk 0:04:46.8]} 11... Qe7 {[%clk 0:04:42.3]} 12. O-O-O {[%clk 0:04:43.4]}
12... Rab8 {[%clk 0:04:38.6]} 13. Kb1 {[%clk 0:04:37.4]} 13... Ba3 {[%clk
0:04:32.2]} 14. Qg2 {[%clk 0:04:35.4]} 14... Rxb2+ {[%clk 0:04:25.4]} 15. Ka1
{[%clk 0:04:32.6]} 15... g6 {[%clk 0:04:24.8]} 0-1

[Event "Live Chess"]
[Site "Chess.com"]
[Date "2023.05.21"]
[Round "-"]
[White "elephantgerrald"]
[Black "LaupMiths"]
[Result "0-1"]
[WhiteElo "688"]
[BlackElo "1812"]
[TimeControl "300"]
[EndTime "2:31:57 PDT"]
[Termination "LaupMiths won by checkmate"]

1. e4 {[%clk 0:04:57.5]} 1... c5 {[%clk 0:04:58.4]} 2. Nf3 {[%clk 0:04:56.1]}
2... Nc6 {[%clk 0:04:49.2]} 3. Bc4 {[%clk 0:04:49.7]} 3... e6 {[%clk 0:04:47.5]}
4. O-O {[%clk 0:04:46]} 4... a6 {[%clk 0:04:45.3]} 5. Nc3 {[%clk 0:04:37.1]}
5... b5 {[%clk 0:04:43.3]} 6. Nxb5 {[%clk 0:04:34.6]} 6... axb5 {[%clk
0:04:41.7]} 7. Bxb5 {[%clk 0:04:33.7]} 7... Bb7 {[%clk 0:04:39.9]} 8. Bxc6
{[%clk 0:04:31]} 8... Bxc6 {[%clk 0:04:38.6]} 9. Ne5 {[%clk 0:04:29.6]} 9... Bb5
{[%clk 0:04:32.2]} 10. Qf3 {[%clk 0:04:19.1]} 10... Nf6 {[%clk 0:04:30.4]} 11.
c4 {[%clk 0:04:16]} 11... Ba6 {[%clk 0:04:22.7]} 12. d3 {[%clk 0:04:02.3]} 12...
Be7 {[%clk 0:04:11.5]} 13. Bg5 {[%clk 0:03:49.6]} 13... h6 {[%clk 0:04:07.8]}
14. Bxf6 {[%clk 0:03:47.9]} 14... Bxf6 {[%clk 0:04:06.5]} 15. Qf4 {[%clk
0:03:38.9]} 15... Qc7 {[%clk 0:03:56.8]} 16. b3 {[%clk 0:03:25.6]} 16... Qxe5
{[%clk 0:03:54.4]} 17. Qxe5 {[%clk 0:03:05]} 17... Bxe5 {[%clk 0:03:54.3]} 18.
Rab1 {[%clk 0:03:03]} 18... Rb8 {[%clk 0:03:51.2]} 19. Rfd1 {[%clk 0:02:53.2]}
19... Bd4 {[%clk 0:03:49.4]} 20. h4 {[%clk 0:02:49.8]} 20... h5 {[%clk
0:03:45.8]} 21. g3 {[%clk 0:02:47.3]} 21... Ke7 {[%clk 0:03:44.3]} 22. Kg2
{[%clk 0:02:44.3]} 22... Rb6 {[%clk 0:03:41.1]} 23. f3 {[%clk 0:02:41.9]} 23...
Bb7 {[%clk 0:03:39]} 24. a4 {[%clk 0:02:39.9]} 24... Bc6 {[%clk 0:03:35.7]} 25.
a5 {[%clk 0:02:38]} 25... Ra6 {[%clk 0:03:34.4]} 26. b4 {[%clk 0:02:36.3]} 26...
cxb4 {[%clk 0:03:31.6]} 27. Rxb4 {[%clk 0:02:30.9]} 27... Rxa5 {[%clk
0:03:30.3]} 28. Kh3 {[%clk 0:02:24.5]} 28... Rha8 {[%clk 0:03:25]} 29. f4 {[%clk
0:02:23.5]} 29... Ra2 {[%clk 0:03:21.1]} 30. Rb3 {[%clk 0:02:20.1]} 30... g6
{[%clk 0:03:10.5]} 31. g4 {[%clk 0:02:18.8]} 31... hxg4+ {[%clk 0:03:08.6]} 32.
Kxg4 {[%clk 0:02:16.5]} 32... Rg2+ {[%clk 0:03:05.6]} 33. Kh3 {[%clk 0:02:14.7]}
33... Raa2 {[%clk 0:03:03.5]} 34. Rh1 {[%clk 0:02:11.2]} 34... f5 {[%clk
0:02:54.7]} 35. exf5 {[%clk 0:02:09.7]} 35... gxf5 {[%clk 0:02:50.7]} 36. h5
{[%clk 0:02:08.5]} 36... Bf3 {[%clk 0:02:45.9]} 37. h6 {[%clk 0:02:06.2]} 37...
Bg4+ {[%clk 0:02:44.7]} 38. Kh4 {[%clk 0:02:03.9]} 38... Bf6# {[%clk 0:02:43.1]}
0-1

[Event "Live Chess"]
[Site "Chess.com"]
[Date "2023.05.21"]
[Round "-"]
[White "SupremeTactician"]
[Black "Denz14"]
[Result "1-0"]
[WhiteElo "2261"]
[BlackElo "1048"]
[TimeControl "300"]
[EndTime "2:32:08 PDT"]
[Termination "SupremeTactician won by resignation"]

1. e4 {[%clk 0:04:59.2]} 1... d5 {[%clk 0:04:57.2]} 2. exd5 {[%clk 0:04:58.6]}
2... Qxd5 {[%clk 0:04:57.1]} 3. Nc3 {[%clk 0:04:58.4]} 3... Qd8 {[%clk
0:04:56.4]} 4. d4 {[%clk 0:04:58.3]} 4... Nf6 {[%clk 0:04:54.2]} 5. Be3 {[%clk
0:04:58.2]} 5... e6 {[%clk 0:04:48]} 6. Nf3 {[%clk 0:04:58.1]} 6... Bb4 {[%clk
0:04:44.4]} 7. a3 {[%clk 0:04:56.7]} 7... Bxc3+ {[%clk 0:04:43.1]} 8. bxc3
{[%clk 0:04:56.6]} 8... O-O {[%clk 0:04:39.4]} 9. Bd3 {[%clk 0:04:54.9]} 9... b6
{[%clk 0:04:36.8]} 10. O-O {[%clk 0:04:48.2]} 10... Bb7 {[%clk 0:04:33.2]} 11.
Ne5 {[%clk 0:04:47.5]} 11... Nbd7 {[%clk 0:04:29.5]} 12. f4 {[%clk 0:04:45.7]}
12... Nd5 {[%clk 0:04:24.2]} 13. Bd2 {[%clk 0:04:43.5]} 13... N7f6 {[%clk
0:04:19.7]} 14. c4 {[%clk 0:04:42.1]} 14... Ne7 {[%clk 0:04:04]} 15. c3 {[%clk
0:04:33.3]} 15... Ng6 {[%clk 0:03:55.8]} 16. Qc2 {[%clk 0:04:27.7]} 16... Nxe5
{[%clk 0:03:49]} 17. fxe5 {[%clk 0:04:25]} 17... Ng4 {[%clk 0:03:34.1]} 18.
Bxh7+ {[%clk 0:04:22.6]} 18... Kh8 {[%clk 0:03:32.4]} 19. Be4 {[%clk 0:04:19.7]}
19... f5 {[%clk 0:03:23.7]} 20. Bxb7 {[%clk 0:04:16.8]} 1-0